{"text_format":"3","workbook":"xlsx","n_sheets":2,"sheets":["CC","CONVOYEUR ENTREE"],"not_rendered":{"macros":1,"defined_names":2},"read":"whole","date_system":"1900"}

{"sheet":"CC","index":0,"n_rows":130,"n_cols":39,"rows_kept":130}
["Numéro",null,"GROUP DESCRIPTION",{"$nulls":4},"Root Cause",{"$nulls":7},"CONTRÔLER\n",null,"TASK \n","COMPONENT\n","Intervention Frequency ","OFFSET","Types of maintenance","Machine Status","Procedures numbers VERSA Film","Procedures numbers VERSA Access","Skills","Durée","Machine Status","Procedures numbers VERSA Film","Procedures numbers VERSA Access","Skills","Durée","Indice","Specific tool","Comments","Severity (2)","Frequency (2)","Detection (2)","RPN (2)"]
["A038",{"$f":"A2&\"  \"&H2","v":"A038  convoyeur sale"},"CONVOYEUR ENTREE",{"$nulls":4},"convoyeur sale",{"$nulls":7},"Contrôler le coefficient de friction",null,"CL - Nettoyage","Tapis modulaire",500,null,"conditionnel","ON",null,"OCT-VA-10002","L2",5,"OFF","XXX","OCL-VA-10000","L1",15,"N/A","No",null,4,4,2,32]
["A050",{"$f":"A3&\"  \"&H3","v":"A050  manque de lub"},"CONVOYEUR ENTREE",{"$nulls":4},"manque de lub",{"$nulls":7},"Contrôler le débit",null,"CL - Nettoyage","Buses de lubrification",500,null,"conditionnel","ON",null,null,"L1",1,"OFF",null,null,"L1",20,"N/A","No",null,4,4,2,32]
["A118","A118  bouteilles qui collent","CONVOYEUR ENTREE",{"$nulls":4},"bouteilles qui collent",{"$nulls":7},"Contrôler l'état de propreté",null,"CL - Nettoyage","Couloirs (tôles)",500,null,"conditionnel","ON",null,null,"L1",3,"OFF","XXX","OCL-VA-10001","L1",30,"N/A","No",null,4,4,2,32]
["A133","A133  bouteilles qui collent","CONVOYEUR ENTREE",{"$nulls":4},"bouteilles qui collent",{"$nulls":7},"Contrôler l'état de propreté",null,"CL - Nettoyage","Couloirs (tôles)",500,null,"conditionnel","ON",null,null,"L1",3,"OFF","XXX","OCL-VA-10001","L1",30,"N/A","No",null,4,4,2,32]
["A013",{"$f":"A6&\"  \"&H6","v":"A013  exces de colle (mauvais fonctionnement étiqueteuse)"},"CONVOYEUR ENTREE",{"$nulls":4},"exces de colle (mauvais fonctionnement étiqueteuse)",{"$nulls":7},"Contrôler l'état de propreté",null,"CL - Nettoyage","Entrée machine",125,null,"conditionnel","ON",null,null,"L1",1,"OFF","XXX","OCL-VA-10001","L1",30,"N/A","No",null,10,4,2,80]
["A026","A026  Rouleaux de renvoi sales","CONVOYEUR ENTREE",{"$nulls":4},"Rouleaux de renvoi sales",{"$nulls":7},"Contrôler l'état de propreté",null,"CL - Nettoyage","Rouleaux de renvoi",null,null,"curatif sans PDR","OFF",null,null,"L2",5,"OFF",null,null,"L1",30,"N/A","No",null,2,4,2,16]
["A006","A006  tapis du convoyeur d'alim sale","CONVOYEUR ENTREE",{"$nulls":4},"tapis du convoyeur d'alim sale",{"$nulls":7},"Contrôler l'état de propreté",null,"CL - Nettoyage","Tapis modulaire",250,null,"conditionnel","ON",null,null,"L1",5,"OFF","XXX","OCL-VA-10000","L1",15,"N/A","No","Insertion d'une action dans plan de maintenance",10,4,2,80]
["A051","A051  tapis sale (excés de lub seche, poussière…)","CONVOYEUR ENTREE",{"$nulls":4},"tapis sale (excés de lub seche, poussière…)",{"$nulls":7},"Contrôler l'état de propreté",null,"CL - Nettoyage","Tapis modulaire",250,null,"conditionnel","ON",null,null,"L1",5,"OFF","XXX","OCL-VA-10000","L1",15,"N/A","No",null,4,4,2,32]
["A063","A063  tapis sale (excés de lub seche, poussière…)","CONVOYEUR ENTREE",{"$nulls":4},"tapis sale (excés de lub seche, poussière…)",{"$nulls":7},"Contrôler l'état de propreté",null,"CL - Nettoyage","Tapis modulaire",250,null,"conditionnel","ON",null,null,"L1",5,"OFF","XXX","OCL-VA-10000","L1",15,"N/A","No",null,4,4,2,32]
["A107","A107  mauvais outillages","CONVOYEUR ENTREE",{"$nulls":4},"mauvais outillages",{"$nulls":7},"Contrôler la conformité",null,"RP - Remplacement","Outillages",null,null,"curatif sans PDR","ON",null,null,"L1",5,"OFF",null,null,"L1",5,"N/A","No",null,2,4,2,16]
["A128","A128  mauvais outillages","CONVOYEUR ENTREE",{"$nulls":4},"mauvais outillages",{"$nulls":7},"Contrôler la conformité",null,"RP - Remplacement","Outillages",null,null,"curatif sans PDR","ON",null,null,"L1",5,"OFF",null,null,"L1",5,"N/A","No",null,2,4,2,16]
["A143","A143  mauvais outillages","CONVOYEUR ENTREE",{"$nulls":4},"mauvais outillages",{"$nulls":7},"Contrôler la conformité",null,"RP - Remplacement","Outillages",null,null,"curatif sans PDR","ON",null,null,"L1",5,"OFF",null,null,"L1",5,"N/A","No",null,2,4,2,16]
["A016","A016  Problème de moteur/variateur","CONVOYEUR ENTREE",{"$nulls":4},"Problème de moteur/variateur",{"$nulls":7},"Contrôler la conformité électrique et mécanique",null,"RP - Remplacement","Moteur/variateur",6000,16500,"curatif sans PDR","ON",null,null,"L5",null,"OFF",null,null,"L3",45,"N/A","No",null,2,1,4,8]
["A034","A034  probleme moteur/variateur","CONVOYEUR ENTREE",{"$nulls":4},"probleme moteur/variateur",{"$nulls":7},"Contrôler la conformité électrique et mécanique",null,"RP - Remplacement","Moteur/variateur",6000,16500,"conditionnel","ON",null,null,"L2",10,"OFF",null,null,"L3",45,"N/A","No",null,8,1,2,16]
["A040","A040  défaut Moteur/Variateur","CONVOYEUR ENTREE",{"$nulls":4},"défaut Moteur/Variateur",{"$nulls":7},"Contrôler la conformité électrique et mécanique",null,"RP - Remplacement","Moteur/variateur",6000,16500,"curatif PDR","ON",null,null,"L2",10,"OFF",null,null,"L3",45,"UPC","No","pdr variateur",8,8,8,512]
["A055","A055  dimensionnement du moteur de dosage","CONVOYEUR ENTREE",{"$nulls":4},"dimensionnement du moteur de dosage",{"$nulls":7},"Contrôler la conformité électrique et mécanique",null,"RP - Remplacement","Moteur/variateur",6000,16500,"curatif sans PDR","ON",null,null,"L5",null,"OFF",null,null,"L3",45,"N/A","No",null,2,1,8,16]
["A068","A068  dimensionnement du moteur de dosage","CONVOYEUR ENTREE",{"$nulls":4},"dimensionnement du moteur de dosage",{"$nulls":7},"Contrôler la conformité électrique et mécanique",null,"RP - Remplacement","Moteur/variateur",6000,16500,"curatif sans PDR","ON",null,null,"L5",null,"OFF",null,null,"L3",45,"N/A","No",null,2,1,8,16]
["A003","A003  cellule produits couchés HS","CONVOYEUR ENTREE",{"$nulls":4},"cellule produits couchés HS",{"$nulls":7},"Contrôler la détection",null,"RP - Remplacement","Cellule produits couchés",1500,null,"curatif PDR","ON",null,null,"L2",5,"OFF",null,null,"L1",10,"UPC","No","RP capteur=curratif",10,8,4,320]
["A114","A114  nez guide d'entrée manquant","CONVOYEUR ENTREE",{"$nulls":4},"nez guide d'entrée manquant",{"$nulls":7},"Contrôler la présence",null,"RP - Remplacement","Nez couloirs",null,null,"curatif sans PDR","ON",null,null,"L1",1,"OFF",null,null,"L2",60,"N/A","No",null,2,1,2,4]
["A009","A009  le lubrifiant est absent","CONVOYEUR ENTREE",{"$nulls":4},"le lubrifiant est absent",{"$nulls":7},"Contrôler la quantité",null,"RP - Remplacement","Lubrifiant",125,null,"curatif sans PDR","ON",null,null,"L1",1,"OFF",null,null,"L2",3,"N/A","No",null,10,8,2,160]
["A037","A037  transmission tapis HS","CONVOYEUR ENTREE",{"$nulls":4},"transmission tapis HS",{"$nulls":7},"Contrôler le fonctionnement",null,"RP - Remplacement","Arbre d'entraînement",6000,16500,"conditionnel","ON",null,null,"L2",15,"OFF",null,null,"L3",180,"N/A","No",null,4,1,2,8]
["A046","A046  Défaillance de(s) cellule(s) d'offset dosage","CONVOYEUR ENTREE",{"$nulls":4},"Défaillance de(s) cellule(s) d'offset dosage",{"$nulls":7},"Contrôler le fonctionnement",null,"RP - Remplacement","Cellule d'offset dosage",125,null,"curatif sans PDR","ON",null,null,"L2",null,"ON",null,null,"L3",120,"N/A","No",null,2,8,2,32]
["A059","A059  défaillance de(s) cellule(s) d'offset dosage","CONVOYEUR ENTREE",{"$nulls":4},"défaillance de(s) cellule(s) d'offset dosage",{"$nulls":7},"Contrôler le fonctionnement",null,"RP - Remplacement","Cellule d'offset dosage",125,null,"curatif sans PDR","ON",null,null,"L2",null,"ON",null,null,"L3",120,"N/A","No",null,2,1,2,4]
["A072","A072  défaillance de(s) cellule(s) d'offset dosage","CONVOYEUR ENTREE",{"$nulls":4},"défaillance de(s) cellule(s) d'offset dosage",{"$nulls":7},"Contrôler le fonctionnement",null,"RP - Remplacement","Cellule d'offset dosage",125,null,"curatif sans PDR","ON",null,null,"L2",null,"ON",null,null,"L3",120,"N/A","No",null,2,1,4,8]
["A023","A023  Paliers bloqués","CONVOYEUR ENTREE",{"$nulls":4},"Paliers bloqués",{"$nulls":7},"Contrôler l'étanchéité",null,"RP - Remplacement","Paliers",6000,22500,"systématique","ON",null,"OCT-VA-10003","L2",3,"OFF","XXX","XXX","L5",120,"N/A","No",null,4,1,8,32]
["A028","A028  Paliers usés (points durs)","CONVOYEUR ENTREE",{"$nulls":4},"Paliers usés (points durs)",{"$nulls":7},"Contrôler l'étanchéité",null,"RP - Remplacement","Paliers",6000,22500,"conditionnel","ON",null,"OCT-VA-10003","L2",3,"OFF","XXX","XXX","L5",120,"N/A","No",null,4,1,2,8]
["A033","A033  Paliers bloqués","CONVOYEUR ENTREE",{"$nulls":4},"Paliers bloqués",{"$nulls":7},"Contrôler l'étanchéité",null,"RP - Remplacement","Paliers",6000,22500,"conditionnel","ON",null,"OCT-VA-10003","L2",3,"OFF","XXX","XXX","L5",120,"N/A","No",null,8,1,2,16]
["A042","A042  Chaîne  cassée","CONVOYEUR ENTREE",{"$nulls":4},"Chaîne  cassée",{"$nulls":7},"Contrôler l'intégrité",null,"RP - Remplacement","Chaîne",6000,16500,"conditionnel","OFF",null,null,"L2",5,"OFF",null,null,"L3",30,"N/A","No",null,4,1,2,8]
["A098","A098  galets endommagés","CONVOYEUR ENTREE",{"$nulls":4},"galets endommagés",{"$nulls":7},"Contrôler l'intégrité",null,"RP - Remplacement","Galets",3000,null,"curatif sans PDR","OFF",null,null,"L2",10,"OFF",null,null,"L2",60,"N/A","No",null,2,8,2,32]
["A121","A121  galets endommagés","CONVOYEUR ENTREE",{"$nulls":4},"galets endommagés",{"$nulls":7},"Contrôler l'intégrité",null,"RP - Remplacement","Galets",3000,null,"curatif sans PDR","OFF",null,null,"L2",10,"OFF",null,null,"L2",60,"N/A","No",null,2,8,2,32]
["A127","A127  rouleau d'entrée de tôle bloqué","CONVOYEUR ENTREE",{"$nulls":4},"rouleau d'entrée de tôle bloqué",{"$nulls":7},"Contrôler l'intégrité",null,"RP - Remplacement","Galets",3000,null,"curatif sans PDR","OFF",null,null,"L2",10,"OFF",null,null,"L2",60,"N/A","No",null,2,4,2,16]
["A136","A136  galets endommagés","CONVOYEUR ENTREE",{"$nulls":4},"galets endommagés",{"$nulls":7},"Contrôler l'intégrité",null,"RP - Remplacement","Galets",3000,null,"curatif sans PDR","OFF",null,null,"L2",10,"OFF",null,null,"L2",60,"N/A","No",null,2,8,2,32]
["A084","A084  guides de soutien du tapis d'alimentation deteriorés","CONVOYEUR ENTREE",{"$nulls":4},"guides de soutien du tapis d'alimentation deteriorés",{"$nulls":7},"Contrôler l'intégrité",null,"RP - Remplacement","Guides sous tapis",null,null,"curatif sans PDR","OFF",null,null,"L3",30,"OFF",null,null,"L3",120,"N/A","No",null,2,4,4,32]
["A041","A041  Pignons usés","CONVOYEUR ENTREE",{"$nulls":4},"Pignons usés",{"$nulls":7},"Contrôler l'intégrité",null,"RP - Remplacement","Pignons d'entraînement",6000,16500,"conditionnel","OFF",null,null,"L2",15,"OFF",null,null,"L3",120,"N/A","No",null,4,4,2,32]
["A020","A020  Roulements des rouleaux de renvoi usés (points durs)","CONVOYEUR ENTREE",{"$nulls":4},"Roulements des rouleaux de renvoi usés (points durs)",{"$nulls":7},"Contrôler l'intégrité",null,"RP - Remplacement","Rouleaux de renvoi",6000,null,"conditionnel","OFF",null,null,"L2",5,"OFF",null,null,"L3",60,"N/A","No",null,4,4,2,32]
["A021","A021  Roulements des rouleaux de renvoi bloqués","CONVOYEUR ENTREE",{"$nulls":4},"Roulements des rouleaux de renvoi bloqués",{"$nulls":7},"Contrôler l'intégrité",null,"RP - Remplacement","Rouleaux de renvoi",6000,null,"systématique","OFF",null,null,"L2",5,"OFF",null,null,"L3",60,"N/A","No",null,4,1,8,32]
["A018","A018  tapis modulaire trop long","CONVOYEUR ENTREE",{"$nulls":4},"tapis modulaire trop long",{"$nulls":7},"Contrôler l'intégrité",null,"RP - Remplacement","Tapis modulaire",6000,16500,"conditionnel","ON",null,null,"L1",5,"OFF","XXX","ORP-VA-10003","L2",30,"N/A","No",null,8,4,2,64]
["A022","A022  Tapis modulaire usé (usure normale)","CONVOYEUR ENTREE",{"$nulls":4},"Tapis modulaire usé (usure normale)",{"$nulls":7},"Contrôler l'intégrité",null,"RP - Remplacement","Tapis modulaire",6000,16500,"conditionnel","ON",null,null,"L1",5,"OFF","XXX","ORP-VA-10003","L2",30,"N/A","No",null,4,4,2,32]
["A024","A024  tapis modulaire endommagé","CONVOYEUR ENTREE",{"$nulls":4},"tapis modulaire endommagé",{"$nulls":7},"Contrôler l'intégrité",null,"RP - Remplacement","Tapis modulaire",6000,16500,"conditionnel","ON",null,null,"L1",5,"OFF","XXX","ORP-VA-10003","L2",30,"N/A","No",null,4,1,2,8]
["A027","A027  tapis modulaire trop court","CONVOYEUR ENTREE",{"$nulls":4},"tapis modulaire trop court",{"$nulls":7},"Contrôler l'intégrité",null,"RP - Remplacement","Tapis modulaire",6000,16500,"conditionnel","ON",null,null,"L1",5,"OFF","XXX","ORP-VA-10003","L2",30,"N/A","No",null,4,1,2,8]
["A032","A032  tapis modulaire trop long","CONVOYEUR ENTREE",{"$nulls":4},"tapis modulaire trop long",{"$nulls":7},"Contrôler l'intégrité",null,"RP - Remplacement","Tapis modulaire",6000,16500,"conditionnel","ON",null,null,"L1",5,"OFF","XXX","ORP-VA-10003","L2",30,"N/A","No","Insertion d'un contrôle dans plan de maintenance",8,4,2,64]
["A035","A035  Tapis cassé","CONVOYEUR ENTREE",{"$nulls":4},"Tapis cassé",{"$nulls":7},"Contrôler l'intégrité",null,"RP - Remplacement","Tapis modulaire",6000,16500,"conditionnel","ON",null,null,"L1",5,"OFF","XXX","ORP-VA-10003","L2",30,"N/A","No",null,8,1,2,16]
["A036","A036  bande trop longue","CONVOYEUR ENTREE",{"$nulls":4},"bande trop longue",{"$nulls":7},"Contrôler l'intégrité",null,"RP - Remplacement","Tapis modulaire",6000,16500,"conditionnel","ON",null,null,"L1",5,"OFF","XXX","ORP-VA-10003","L2",30,"N/A","No",null,8,1,2,16]
["A039","A039  Tapis cassé","CONVOYEUR ENTREE",{"$nulls":4},"Tapis cassé",{"$nulls":7},"Contrôler l'intégrité",null,"RP - Remplacement","Tapis modulaire",6000,16500,"conditionnel","ON",null,null,"L1",5,"OFF","XXX","ORP-VA-10003","L2",30,"N/A","No",null,8,1,2,16]
["A070","A070  tapis /convoyeur de dosage inadapté ( trop glissant)","CONVOYEUR ENTREE",{"$nulls":4},"tapis /convoyeur de dosage inadapté ( trop glissant)",{"$nulls":7},"Contrôler l'intégrité",null,"RP - Remplacement","Tapis modulaire",null,null,"curatif sans PDR","ON",null,null,"L1",5,"OFF","XXX","ORP-VA-10003","L2",30,"N/A","No",null,2,1,4,8]
["A074","A074  tapis /convoyeur de dosage inadapté ( trop court)","CONVOYEUR ENTREE",{"$nulls":4},"tapis /convoyeur de dosage inadapté ( trop court)",{"$nulls":7},"Contrôler l'intégrité",null,"RP - Remplacement","Tapis modulaire",null,null,"curatif sans PDR","ON",null,null,"L1",5,"OFF","XXX","ORP-VA-10003","L2",30,"N/A","No",null,2,1,4,8]
["A099","A099  teflon endommagé","CONVOYEUR ENTREE",{"$nulls":4},"teflon endommagé",{"$nulls":7},"Contrôler l'intégrité",null,"RP - Remplacement","Téflon",null,null,"curatif sans PDR","OFF",null,null,"L1",5,"OFF",null,null,"L2",180,"N/A","No",null,2,8,2,32]
["A004","A004  cellule produit couché pas cablé","CONVOYEUR ENTREE",{"$nulls":4},"cellule produit couché pas cablé",{"$nulls":7},"Contrôler la détection",null,"TU - Réglage","Cellule produits couchés",125,null,"conditionnel","ON",null,null,"L1",1,"ON",null,null,"L1",5,"N/A","No",null,10,4,2,80]
["A014","A014  tapis modulaire trop long","CONVOYEUR ENTREE",{"$nulls":4},"tapis modulaire trop long",{"$nulls":7},"Contrôler la longueur",null,"TU - Réglage","Tapis modulaire",3000,null,"curatif sans PDR","ON",null,null,"L3",{"$nulls":6},"N/A","No",null,2,4,4,32]
["A001","A001  balancelle manque produit mal reglée","CONVOYEUR ENTREE",{"$nulls":4},"balancelle manque produit mal reglée",{"$nulls":7},"Contrôler la position",null,"TU - Réglage","Balancelle manque produit",125,null,"conditionnel","ON",null,null,"L1",1,"OFF",null,null,"L1",2,"N/A","No",null,10,4,2,80]
["A002","A002  balancelle manque produit trop basse","CONVOYEUR ENTREE",{"$nulls":4},"balancelle manque produit trop basse",{"$nulls":7},"Contrôler la position",null,"TU - Réglage","Balancelle manque produit",125,null,"conditionnel","ON",null,null,"L1",1,"ON",null,null,"L1",2,"N/A","No",null,10,4,2,80]
["A087","A087  balancelle trop haute","CONVOYEUR ENTREE",{"$nulls":4},"balancelle trop haute",{"$nulls":7},"Contrôler la position",null,"TU - Réglage","Balancelle manque produit",null,null,"curatif sans PDR","ON",null,null,"L1",{"$nulls":6},"N/A","No",null,2,8,2,32]
["A090","A090  balancelle supérieure de niveau produit ou dosage qui bloque le produit amont","CONVOYEUR ENTREE",{"$nulls":4},"balancelle supérieure de niveau produit ou dosage qui bloque le produit amont",{"$nulls":7},"Contrôler la position",null,"TU - Réglage","Balancelle manque produit",125,null,"curatif sans PDR","ON",null,null,"L1",2,"OFF",null,null,"L1",5,"N/A","No",null,2,1,2,4]
["A139","A139  balancelle trop basse","CONVOYEUR ENTREE",{"$nulls":4},"balancelle trop basse",{"$nulls":7},"Contrôler la position",null,"TU - Réglage","Balancelle manque produit",null,null,"curatif sans PDR","ON",null,null,"L1",{"$nulls":6},"N/A","No",null,2,8,2,32]
["A145","A145  balancelle qui font chuter les produits","CONVOYEUR ENTREE",{"$nulls":4},"balancelle qui font chuter les produits",{"$nulls":7},"Contrôler la position",null,"TU - Réglage","Balancelle manque produit",null,null,"curatif sans PDR","ON",null,null,"L1",{"$nulls":6},"N/A","No",null,2,1,2,4]
["A010","A010  position cellule de dosage trop en amont","CONVOYEUR ENTREE",{"$nulls":4},"position cellule de dosage trop en amont",{"$nulls":7},"Contrôler la position",null,"TU - Réglage","Cellule d'offset dosage",125,null,"conditionnel","ON",null,null,"L1",5,"OFF",null,null,"L1",10,"N/A","No",null,10,4,2,80]
["A048","A048  position de(s) cellule(s) d'offset de dosage","CONVOYEUR ENTREE",{"$nulls":4},"position de(s) cellule(s) d'offset de dosage",{"$nulls":7},"Contrôler la position",null,"TU - Réglage","Cellule d'offset dosage",125,null,"curatif sans PDR","ON",null,null,"L1",5,"OFF",null,null,"L1",10,"N/A","No",null,2,8,2,32]
["A058","A058  position de(s) cellule(s) d'offset de dosage","CONVOYEUR ENTREE",{"$nulls":4},"position de(s) cellule(s) d'offset de dosage",{"$nulls":7},"Contrôler la position",null,"TU - Réglage","Cellule d'offset dosage",125,null,"curatif sans PDR","ON",null,null,"L3",5,"OFF",null,null,"L1",10,"N/A","No",null,2,1,4,8]
["A071","A071  position de(s) cellule(s) d'offset de dosage","CONVOYEUR ENTREE",{"$nulls":4},"position de(s) cellule(s) d'offset de dosage",{"$nulls":7},"Contrôler la position",null,"TU - Réglage","Cellule d'offset dosage",125,null,"curatif sans PDR","ON",null,null,"L3",5,"OFF",null,null,"L1",10,"N/A","No",null,2,1,4,8]
["A140","A140  cellule de dosage trop basse","CONVOYEUR ENTREE",{"$nulls":4},"cellule de dosage trop basse",{"$nulls":7},"Contrôler la position",null,"TU - Réglage","Cellule d'offset dosage",125,null,"curatif sans PDR","ON",null,null,"L1",5,"OFF",null,null,"L1",10,"N/A","No",null,2,4,2,16]
["A049","A049  produits coincés sur le doseur","CONVOYEUR ENTREE",{"$nulls":4},"produits coincés sur le doseur",{"$nulls":7},"Contrôler la position",null,"TU - Réglage","Guides convoyeur",null,null,"curatif sans PDR","ON",null,null,"L1",{"$nulls":6},"N/A","No",null,2,8,2,32]
["A052","A052  réglage des guides du doseur  inadapté","CONVOYEUR ENTREE",{"$nulls":4},"réglage des guides du doseur  inadapté",{"$nulls":7},"Contrôler la position",null,"TU - Réglage","Guides convoyeur",null,null,"curatif sans PDR","ON",null,null,"L1",{"$nulls":6},"N/A","No",null,2,8,2,32]
["A061","A061  réglage des guides du doseur  inadapté","CONVOYEUR ENTREE",{"$nulls":4},"réglage des guides du doseur  inadapté",{"$nulls":7},"Contrôler la position",null,"TU - Réglage","Guides convoyeur",8,null,"curatif sans PDR","ON",null,null,"L1",{"$nulls":6},"N/A","No",null,2,8,2,32]
["A073","A073  réglage des guides du doseur  inadapté","CONVOYEUR ENTREE",{"$nulls":4},"réglage des guides du doseur  inadapté",{"$nulls":7},"Contrôler la position",null,"TU - Réglage","Guides convoyeur",null,null,"curatif sans PDR","ON",null,null,"L3",{"$nulls":6},"N/A","No",null,2,1,4,8]
["A078",{"$f":"A66&\"  \"&H66","v":"A078  guides mal réglés"},"CONVOYEUR ENTREE",{"$nulls":4},"guides mal réglés",{"$nulls":7},"Contrôler la position",null,"TU - Réglage","Guides convoyeur",8,null,"curatif sans PDR","ON",null,null,"L1",{"$nulls":6},"N/A","No",null,2,8,2,32]
["A125","A125  guides mal réglés","CONVOYEUR ENTREE",{"$nulls":4},"guides mal réglés",{"$nulls":7},"Contrôler la position",null,"TU - Réglage","Guides convoyeur",null,null,"curatif sans PDR","ON",null,null,"L1",{"$nulls":6},"N/A","No",null,2,8,2,32]
["A138","A138  guides mal reglés","CONVOYEUR ENTREE",{"$nulls":4},"guides mal reglés",{"$nulls":7},"Contrôler la position",null,"TU - Réglage","Guides convoyeur",null,null,"curatif sans PDR","ON",null,null,"L1",{"$nulls":6},"N/A","No",null,2,8,2,32]
["A019","A019  Chaîne qui saute des dents","CONVOYEUR ENTREE",{"$nulls":4},"Chaîne qui saute des dents",{"$nulls":7},"Contrôler la position",null,"TU - Réglage","Pignons d'entraînement",1500,null,"conditionnel","OFF",null,null,"L1",{"$nulls":6},"N/A","No",null,4,4,2,32]
["A044","A044  position des pignons chaines mal reglée","CONVOYEUR ENTREE",{"$nulls":4},"position des pignons chaines mal reglée",{"$nulls":7},"Contrôler la position",null,"TU - Réglage","Pignons d'entraînement",1500,null,"conditionnel","OFF",null,null,"L1",{"$nulls":6},"N/A","No",null,4,1,2,8]
["A017","A017  Transfert dosage mal réglé (niveau)","CONVOYEUR ENTREE",{"$nulls":4},"Transfert dosage mal réglé (niveau)",{"$nulls":7},"Contrôler la position",null,"TU - Réglage","Tapis modulaire",null,null,"curatif sans PDR","ON",null,null,"L1",{"$nulls":6},"N/A","No",null,2,1,2,4]
["A029","A029  Bandes modulaires qui sautent des dents","CONVOYEUR ENTREE",{"$nulls":4},"Bandes modulaires qui sautent des dents",{"$nulls":7},"Contrôler la position",null,"TU - Réglage","Tapis modulaire",null,null,"conditionnel","ON",null,null,"L1",{"$nulls":6},"N/A","No",null,4,1,2,8]
["A030","A030  mauvais passage du tapis modulaire","CONVOYEUR ENTREE",{"$nulls":4},"mauvais passage du tapis modulaire",{"$nulls":7},"Contrôler la position",null,"TU - Réglage","Tapis modulaire",null,null,"conditionnel","ON",null,null,"L1",{"$nulls":6},"N/A","No",null,4,1,2,8]
["A031","A031  Transfert de sortie mal réglé (niveau) et qui frotte","CONVOYEUR ENTREE",{"$nulls":4},"Transfert de sortie mal réglé (niveau) et qui frotte",{"$nulls":7},"Contrôler la position",null,"TU - Réglage","Tapis modulaire",null,null,"conditionnel","ON",null,null,"L1",{"$nulls":6},"N/A","No",null,4,1,2,8]
["A081","A081  transfert mal reglé/inadapté","CONVOYEUR ENTREE",{"$nulls":4},"transfert mal reglé/inadapté",{"$nulls":7},"Contrôler la position",null,"TU - Réglage","Tapis modulaire",null,null,"curatif sans PDR","ON",null,null,"L1",{"$nulls":6},"N/A","No",null,2,8,2,32]
["A080","A080  réglage des tôles inadapté","CONVOYEUR ENTREE",{"$nulls":4},"réglage des tôles inadapté",{"$nulls":7},"Contrôler la position",null,"TU - Réglage","Tôles des couloirs",null,null,"curatif sans PDR","ON",null,null,"L1",{"$nulls":6},"N/A","No",null,2,8,2,32]
["A082","A082  Mauvais changement de format","CONVOYEUR ENTREE",{"$nulls":4},"Mauvais changement de format",{"$nulls":7},"Contrôler la position",null,"TU - Réglage","Tôles des couloirs",null,null,"curatif sans PDR","ON",null,null,"L1",{"$nulls":6},"N/A","No",null,2,8,2,32]
["A094","A094  mauvais réglages de l'écartement des tôles","CONVOYEUR ENTREE",{"$nulls":4},"mauvais réglages de l'écartement des tôles",{"$nulls":7},"Contrôler la position",null,"TU - Réglage","Tôles des couloirs",8,null,"curatif sans PDR","ON",null,null,"L1",{"$nulls":6},"N/A","No",null,2,8,2,32]
["A110","A110  mauvais réglages de l'écartement des tôles secondaires","CONVOYEUR ENTREE",{"$nulls":4},"mauvais réglages de l'écartement des tôles secondaires",{"$nulls":7},"Contrôler la position",null,"TU - Réglage","Tôles des couloirs",null,null,"curatif sans PDR","ON",null,null,"L1",{"$nulls":6},"N/A","No",null,2,4,2,16]
["A117","A117  mauvais réglages de l'écartement des tôles","CONVOYEUR ENTREE",{"$nulls":4},"mauvais réglages de l'écartement des tôles",{"$nulls":7},"Contrôler la position",null,"TU - Réglage","Tôles des couloirs",null,null,"curatif sans PDR","ON",null,null,"L1",{"$nulls":6},"N/A","No",null,2,8,2,32]
["A008","A008  vitesse convoyeur d'alimentation trop importante","CONVOYEUR ENTREE",{"$nulls":4},"vitesse convoyeur d'alimentation trop importante",{"$nulls":7},"Contrôler la pression",null,"TU - Réglage","Convoyeur d'alimentation",125,null,"conditionnel","ON",null,null,"L1",5,"ON","XXX","XXX","L2",10,"N/A","No","Insertion d'un contrôle dans plan de maintenance",10,4,2,80]
["A066","A066  mauvaise vitesse du convoyeur d'alimentation","CONVOYEUR ENTREE",{"$nulls":4},"mauvaise vitesse du convoyeur d'alimentation",{"$nulls":7},"Contrôler la pression",null,"TU - Réglage","Convoyeur d'alimentation",null,null,"curatif sans PDR","ON",null,null,"L3",null,"ON",{"$nulls":4},"N/A","No",null,2,4,4,32]
["A075","A075  vitesse d'alimentation trop haute (produits qui rébondissent)","CONVOYEUR ENTREE",{"$nulls":4},"vitesse d'alimentation trop haute (produits qui rébondissent)",{"$nulls":7},"Contrôler la pression",null,"TU - Réglage","Convoyeur d'alimentation",1500,null,"curatif sans PDR","ON",null,null,"L3",null,"ON","XXX","XXX","L2",null,"N/A","No",null,2,8,4,64]
["A111","A111  vitesse du convoyeur d'alim trop lent","CONVOYEUR ENTREE",{"$nulls":4},"vitesse du convoyeur d'alim trop lent",{"$nulls":7},"Contrôler la pression",null,"TU - Réglage","Convoyeur d'alimentation",null,null,"curatif sans PDR","ON",null,null,"L1",null,"ON",{"$nulls":4},"N/A","No",null,2,4,2,16]
["A129","A129  vitesse du convoyeur d'alim trop lent","CONVOYEUR ENTREE",{"$nulls":4},"vitesse du convoyeur d'alim trop lent",{"$nulls":7},"Contrôler la pression",null,"TU - Réglage","Convoyeur d'alimentation",null,null,"curatif sans PDR","ON",null,null,"L1",null,"ON",{"$nulls":4},"N/A","No",null,2,4,2,16]
["A142","A142  vitesse du convoyeur d'alim trop rapide","CONVOYEUR ENTREE",{"$nulls":4},"vitesse du convoyeur d'alim trop rapide",{"$nulls":7},"Contrôler la pression",null,"TU - Réglage","Convoyeur d'alimentation",null,null,"curatif sans PDR","ON",null,null,"L1",null,"ON",{"$nulls":4},"N/A","No",null,2,4,2,16]
["A007","A007  vitesse convoyeur de dosage trop importante","CONVOYEUR ENTREE",{"$nulls":4},"vitesse convoyeur de dosage trop importante",{"$nulls":7},"Contrôler la pression",null,"TU - Réglage","Convoyeur de dosage",125,null,"conditionnel","ON",null,null,"L1",5,"ON","XXX","XXX","L2",10,"N/A","No","Insertion d'un contrôle dans plan de maintenance",10,4,2,80]
["A047","A047  taux du remplissage du doseur pas à 100%","CONVOYEUR ENTREE",{"$nulls":4},"taux du remplissage du doseur pas à 100%",{"$nulls":7},"Contrôler la pression",null,"TU - Réglage","Convoyeur de dosage",125,null,"curatif sans PDR","ON",null,null,"L1",null,"ON",{"$nulls":4},"N/A","No",null,2,8,2,32]
["A053","A053  mauvaise vitesse du convoyeur d'alimentation","CONVOYEUR ENTREE",{"$nulls":4},"mauvaise vitesse du convoyeur d'alimentation",{"$nulls":7},"Contrôler la pression",null,"TU - Réglage","Convoyeur de dosage",null,null,"curatif sans PDR","ON",null,null,"L3",null,"ON",{"$nulls":4},"N/A","No",null,2,4,4,32]
["A054","A054  parametrage de l'offset dosage","CONVOYEUR ENTREE",{"$nulls":4},"parametrage de l'offset dosage",{"$nulls":7},"Contrôler la pression",null,"TU - Réglage","Convoyeur de dosage",null,null,"curatif sans PDR","ON",null,null,"L3",null,"ON",{"$nulls":4},"N/A","No",null,2,4,4,32]
["A060","A060  taux du remplissage du doseur pas à 100%","CONVOYEUR ENTREE",{"$nulls":4},"taux du remplissage du doseur pas à 100%",{"$nulls":7},"Contrôler la pression",null,"TU - Réglage","Convoyeur de dosage",null,null,"curatif sans PDR","ON",null,null,"L1",null,"ON",{"$nulls":4},"N/A","No",null,2,1,2,4]
["A064","A064  paramétrage de la vitesse du dosage","CONVOYEUR ENTREE",{"$nulls":4},"paramétrage de la vitesse du dosage",{"$nulls":7},"Contrôler la pression",null,"TU - Réglage","Convoyeur de dosage",null,null,"curatif sans PDR","ON",null,null,"L3",null,"ON",{"$nulls":4},"N/A","No",null,2,4,4,32]
["A065","A065  paramétrage de l'offset dosage","CONVOYEUR ENTREE",{"$nulls":4},"paramétrage de l'offset dosage",{"$nulls":7},"Contrôler la pression",null,"TU - Réglage","Convoyeur de dosage",null,null,"curatif sans PDR","ON",null,null,"L3",null,"ON",{"$nulls":4},"N/A","No",null,2,4,4,32]
["A079","A079  differentiel de vitesse  trop important entre dosage et alimentation","CONVOYEUR ENTREE",{"$nulls":4},"differentiel de vitesse  trop important entre dosage et alimentation",{"$nulls":7},"Contrôler la pression",null,"TU - Réglage","Convoyeur de dosage",null,null,"curatif sans PDR","ON",null,null,"L1",null,"ON",{"$nulls":4},"N/A","No",null,2,8,2,32]
["A086","A086  Détection dosage shunté (B39)","CONVOYEUR ENTREE",{"$nulls":4},"Détection dosage shunté (B39)",{"$nulls":7},"Contrôler la pression",null,"TU - Réglage","Convoyeur de dosage",null,null,"curatif sans PDR","ON",null,null,"L1",null,"ON",{"$nulls":4},"N/A","No",null,2,8,2,32]
["A124","A124  Mauvaise gestion de dosage ","CONVOYEUR ENTREE",{"$nulls":4},"Mauvaise gestion de dosage ",{"$nulls":7},"Contrôler la pression",null,"TU - Réglage","Convoyeur de dosage",null,null,"curatif sans PDR","ON",null,null,"L1",null,"ON",{"$nulls":4},"N/A","No",null,2,8,2,32]
["A005","A005  lubrifiant inadaptée","CONVOYEUR ENTREE",{"$nulls":4},"lubrifiant inadaptée",{"$nulls":7},"Contrôler la qualité",null,"TU - Réglage","Lubrifiant",125,null,"conditionnel","ON",null,null,"L1",1,"ON",null,null,"L2",3,"N/A","No",null,10,4,2,80]
["A015","A015  Trop de lubrification sur tapis (tapis glisse sur tambour)","CONVOYEUR ENTREE",{"$nulls":4},"Trop de lubrification sur tapis (tapis glisse sur tambour)",{"$nulls":7},"Contrôler la quantité",null,"TU - Réglage","Lubrifiant",8,null,"curatif sans PDR","ON",null,null,"L1",null,"ON",null,null,"L2",null,"N/A","No",null,2,4,4,32]
["A097","A097  mauvaise gestion de la lub","CONVOYEUR ENTREE",{"$nulls":4},"mauvaise gestion de la lub",{"$nulls":7},"Contrôler la quantité",null,"TU - Réglage","Lubrifiant",8,null,"curatif sans PDR","ON",null,null,"L1",null,"ON",null,null,"L2",null,"N/A","No",null,2,8,2,32]
["A120","A120  mauvaise gestion de la lub","CONVOYEUR ENTREE",{"$nulls":4},"mauvaise gestion de la lub",{"$nulls":7},"Contrôler la quantité",null,"TU - Réglage","Lubrifiant",8,null,"curatif sans PDR","ON",null,null,"L1",null,"ON",null,null,"L2",null,"N/A","No",null,2,8,2,32]
["A135","A135  mauvaise gestion de la lub","CONVOYEUR ENTREE",{"$nulls":4},"mauvaise gestion de la lub",{"$nulls":7},"Contrôler la quantité",null,"TU - Réglage","Lubrifiant",8,null,"curatif sans PDR","ON",null,null,"L1",null,"ON",null,null,"L2",null,"N/A","No",null,2,8,2,32]
["A045","A045  trop de lubrification","CONVOYEUR ENTREE",{"$nulls":4},"trop de lubrification",{"$nulls":7},"Contrôler le coefficient de friction",null,"TU - Réglage","Tapis modulaire",1500,null,"conditionnel","ON",null,"OCT-VA-10002","L1",5,"ON","XXX","XXX","L2",5,"N/A","No",null,4,4,2,32]
["A056","A056  mauvais asservissement","CONVOYEUR ENTREE",{"$nulls":4},"mauvais asservissement",{"$nulls":7},"Contrôler le fonctionnement",null,"TU - Réglage","Convoyeurs en amont",null,null,"curatif sans PDR","ON",null,null,"L5",null,"ON",{"$nulls":4},"N/A","No",null,2,1,8,16]
["A057","A057  convoyeur qui ne démarre pas au bon moment ","CONVOYEUR ENTREE",{"$nulls":4},"convoyeur qui ne démarre pas au bon moment ",{"$nulls":7},"Contrôler le fonctionnement",null,"TU - Réglage","Convoyeurs en amont",null,null,"curatif sans PDR","ON",null,null,"L1",null,"ON",{"$nulls":4},"N/A","No",null,2,4,2,16]
["A067","A067  convoyeur qui demarre pas au bon moment ","CONVOYEUR ENTREE",{"$nulls":4},"convoyeur qui demarre pas au bon moment ",{"$nulls":7},"Contrôler le fonctionnement",null,"TU - Réglage","Convoyeurs en amont",null,null,"curatif sans PDR","ON",null,null,"L1",null,"ON",{"$nulls":4},"N/A","No",null,2,4,2,16]
["A069","A069  mauvais asservissement","CONVOYEUR ENTREE",{"$nulls":4},"mauvais asservissement",{"$nulls":7},"Contrôler le fonctionnement",null,"TU - Réglage","Convoyeurs en amont",null,null,"curatif sans PDR","ON",null,null,"L5",null,"ON",{"$nulls":4},"N/A","No",null,2,1,8,16]
["A083","A083  mauvais montage du caisson de raccordement du tapis d'alimentation","CONVOYEUR ENTREE",{"$nulls":4},"mauvais montage du caisson de raccordement du tapis d'alimentation",{"$nulls":7},"Contrôler le niveau",null,"TU - Réglage","Convoyeur d'alimentation",null,null,"curatif sans PDR","OFF",null,null,"L1",null,"OFF",{"$nulls":4},"N/A","No",null,2,8,2,32]
["A091","A091  diamètre d'assise trop petit ( par rapport au point de contact)","CONVOYEUR ENTREE",{"$nulls":4},"diamètre d'assise trop petit ( par rapport au point de contact)",{"$nulls":7},"Contrôler l'intégrité",null,"TU - Réglage","Produits en amont",null,null,"curatif sans PDR","ON",null,null,"L1",null,"ON",{"$nulls":4},"N/A","No",null,2,1,2,4]
["A095","A095  bouteilles qui collent","CONVOYEUR ENTREE",{"$nulls":4},"bouteilles qui collent",{"$nulls":7},"Contrôler l'intégrité",null,"TU - Réglage","Produits en amont",null,null,"curatif sans PDR","ON",null,null,"L1",null,"ON",{"$nulls":4},"N/A","No",null,2,8,2,32]
["A096","A096  mauvais étiquettage","CONVOYEUR ENTREE",{"$nulls":4},"mauvais étiquettage",{"$nulls":7},"Contrôler l'intégrité",null,"TU - Réglage","Produits en amont",8,null,"curatif sans PDR","ON",null,null,"L1",null,"ON",{"$nulls":4},"N/A","No",null,2,8,2,32]
["A100","A100  bouteille trop molle","CONVOYEUR ENTREE",{"$nulls":4},"bouteille trop molle",{"$nulls":7},"Contrôler l'intégrité",null,"TU - Réglage","Produits en amont",null,null,"curatif sans PDR","ON",null,null,"L1",null,"ON",{"$nulls":4},"N/A","No",null,2,8,2,32]
["A112","A112  mauvaise assise produit","CONVOYEUR ENTREE",{"$nulls":4},"mauvaise assise produit",{"$nulls":7},"Contrôler l'intégrité",null,"TU - Réglage","Produits en amont",null,null,"curatif sans PDR","ON",null,null,"L1",null,"ON",{"$nulls":4},"N/A","No",null,2,1,2,4]
["A113","A113  diamètre d'assise trop petit ( par rapport au point de contact)","CONVOYEUR ENTREE",{"$nulls":4},"diamètre d'assise trop petit ( par rapport au point de contact)",{"$nulls":7},"Contrôler l'intégrité",null,"TU - Réglage","Produits en amont",null,null,"curatif sans PDR","ON",null,null,"L1",null,"ON",{"$nulls":4},"N/A","No",null,2,1,2,4]
["A119","A119  mauvais étiquettage","CONVOYEUR ENTREE",{"$nulls":4},"mauvais étiquettage",{"$nulls":7},"Contrôler l'intégrité",null,"TU - Réglage","Produits en amont",null,null,"curatif sans PDR","ON",null,null,"L1",null,"ON",{"$nulls":4},"N/A","No",null,2,8,2,32]
["A122","A122  bouteille trop molle","CONVOYEUR ENTREE",{"$nulls":4},"bouteille trop molle",{"$nulls":7},"Contrôler l'intégrité",null,"TU - Réglage","Produits en amont",null,null,"curatif sans PDR","ON",null,null,"L1",null,"ON",{"$nulls":4},"N/A","No",null,2,8,2,32]
["A126","A126  bouteille sans bouchon ou mal vissé","CONVOYEUR ENTREE",{"$nulls":4},"bouteille sans bouchon ou mal vissé",{"$nulls":7},"Contrôler l'intégrité",null,"TU - Réglage","Produits en amont",null,null,"curatif sans PDR","ON",null,null,"L1",null,"ON",{"$nulls":4},"N/A","No",null,2,4,2,16]
["A130","A130  diamètre d'assise trop petit ( par rapport au point de contact)","CONVOYEUR ENTREE",{"$nulls":4},"diamètre d'assise trop petit ( par rapport au point de contact)",{"$nulls":7},"Contrôler l'intégrité",null,"TU - Réglage","Produits en amont",null,null,"curatif sans PDR","ON",null,null,"L1",null,"ON",{"$nulls":4},"N/A","No",null,2,1,2,4]
["A131","A131  mauvaise assise produit","CONVOYEUR ENTREE",{"$nulls":4},"mauvaise assise produit",{"$nulls":7},"Contrôler l'intégrité",null,"TU - Réglage","Produits en amont",null,null,"curatif sans PDR","ON",null,null,"L1",null,"ON",{"$nulls":4},"N/A","No",null,2,1,2,4]
["A134","A134  mauvais étiquettage","CONVOYEUR ENTREE",{"$nulls":4},"mauvais étiquettage",{"$nulls":7},"Contrôler l'intégrité",null,"TU - Réglage","Produits en amont",8,null,"curatif sans PDR","ON",null,null,"L1",null,"ON",{"$nulls":4},"N/A","No",null,2,8,2,32]
["A137","A137  bouteille trop molle","CONVOYEUR ENTREE",{"$nulls":4},"bouteille trop molle",{"$nulls":7},"Contrôler l'intégrité",null,"TU - Réglage","Produits en amont",null,null,"curatif sans PDR","ON",null,null,"L1",null,"ON",{"$nulls":4},"N/A","No",null,2,8,2,32]
["A141","A141  bouteille sans bouchon ou mal vissé","CONVOYEUR ENTREE",{"$nulls":4},"bouteille sans bouchon ou mal vissé",{"$nulls":7},"Contrôler l'intégrité",null,"TU - Réglage","Produits en amont",null,null,"curatif sans PDR","ON",null,null,"L1",null,"ON",{"$nulls":4},"N/A","No",null,2,4,2,16]
["A144","A144  diamètre d'assise trop petit ( par rapport au point de contact)","CONVOYEUR ENTREE",{"$nulls":4},"diamètre d'assise trop petit ( par rapport au point de contact)",{"$nulls":7},"Contrôler l'intégrité",null,"TU - Réglage","Produits en amont",null,null,"curatif sans PDR","ON",null,null,"L1",null,"ON",{"$nulls":4},"N/A","No",null,2,1,2,4]
["A146","A146  mauvaise assise produit","CONVOYEUR ENTREE",{"$nulls":4},"mauvaise assise produit",{"$nulls":7},"Contrôler l'intégrité",null,"TU - Réglage","Produits en amont",null,null,"curatif sans PDR","ON",null,null,"L1",null,"ON",{"$nulls":4},"N/A","No",null,2,1,2,4]
["A101","A101  Tôles pas serrées (fixation)","CONVOYEUR ENTREE",{"$nulls":4},"Tôles pas serrées (fixation)",{"$nulls":7},"Contrôler l'intégrité",null,"TU - Réglage","Tôles des couloirs",null,null,"curatif sans PDR","ON",null,null,"L1",null,"OFF",{"$nulls":4},"N/A","No",null,2,8,2,32]
["A108","A108  poignée mal collée","CONVOYEUR ENTREE",{"$nulls":4},"poignée mal collée",{"$nulls":7},"Contrôler l'intégrité",null,"TU - Réglage","Tôles des couloirs",null,null,"curatif sans PDR","ON",null,null,"L1",null,"OFF",{"$nulls":4},"N/A","No",null,2,4,2,16]
["A123","A123  Tôles pas serrées (fixation)","CONVOYEUR ENTREE",{"$nulls":4},"Tôles pas serrées (fixation)",{"$nulls":7},"Contrôler l'intégrité",null,"TU - Réglage","Tôles des couloirs",null,null,"curatif sans PDR","ON",null,null,"L1",null,"OFF",{"$nulls":4},"N/A","No",null,2,8,2,32]
["A012","A012  vibreur trop fort (réglage)","CONVOYEUR ENTREE",{"$nulls":4},"vibreur trop fort (réglage)",{"$nulls":7},"Contrôler l'intensité",null,"TU - Réglage","Vibreurs",125,null,"conditionnel","ON",null,null,"L1",1,"OFF",null,null,"L2",20,"N/A","No","Insertion d'un contrôle dans plan de maintenance",10,4,2,80]
["A115","A115  vibration trop basse","CONVOYEUR ENTREE",{"$nulls":4},"vibration trop basse",{"$nulls":7},"Contrôler l'intensité",null,"TU - Réglage","Vibreurs",500,null,"conditionnel","ON",null,null,"L1",20,"OFF",null,null,"L3",30,"N/A","No",null,4,4,2,32]
["A116","A116  vibration trop haute","CONVOYEUR ENTREE",{"$nulls":4},"vibration trop haute",{"$nulls":7},"Contrôler l'intensité",null,"TU - Réglage","Vibreurs",500,null,"conditionnel","ON",null,null,"L1",1,"OFF",null,null,"L3",30,"N/A","No",null,4,4,2,32]
["A132",{"$f":"A130&\"  \"&H130","v":"A132  vibration trop haute"},"CONVOYEUR ENTREE",{"$nulls":4},"vibration trop haute",{"$nulls":7},"Contrôler l'intensité",null,"TU - Réglage","Vibreurs",500,null,"conditionnel","ON",null,null,"L1",1,"OFF",null,null,"L3",30,"N/A","No",null,4,4,2,32]

{"sheet":"CONVOYEUR ENTREE","index":1,"n_rows":133,"n_cols":8,"rows_kept":133,"merged":[[0,3,0,6]]}
[{"$nulls":3},"ETAT"]
[null,"Contrôle de nettoyage"]
["A038","Contrôler le coefficient de friction","Tapis modulaire",{"$nulls":4},"A038  convoyeur sale"]
["A050","Contrôler le débit","Buses de lubrification",{"$nulls":4},"A050  manque de lub"]
["A118","Contrôler l'état de propreté","Couloirs (tôles)"]
["A133","Contrôler l'état de propreté","Couloirs (tôles)"]
["A013","Contrôler l'état de propreté","Entrée machine",{"$nulls":4},"A013  exces de colle (mauvais fonctionnement étiqueteuse)"]
["A026","Contrôler l'état de propreté","Rouleaux de renvoi",{"$nulls":4},"A026  Rouleaux de renvoi sales"]
["A006","Contrôler l'état de propreté","Tapis modulaire"]
["A051","Contrôler l'état de propreté","Tapis modulaire"]
["A063","Contrôler l'état de propreté","Tapis modulaire"]
[null,"Contrôle de remplacement"]
["A107","Contrôler la conformité","Outillages"]
["A128","Contrôler la conformité","Outillages"]
["A143","Contrôler la conformité","Outillages"]
["A016","Contrôler la conformité électrique et mécanique","Moteur/variateur"]
["A034","Contrôler la conformité électrique et mécanique","Moteur/variateur"]
["A040","Contrôler la conformité électrique et mécanique","Moteur/variateur"]
["A055","Contrôler la conformité électrique et mécanique","Moteur/variateur"]
["A068","Contrôler la conformité électrique et mécanique","Moteur/variateur"]
["A003","Contrôler la détection","Cellule produits couchés",{"$nulls":4},"A003  cellule produits couchés HS"]
["A114","Contrôler la présence","Nez couloirs",{"$nulls":4},"A114  nez guide d'entrée manquant"]
["A009","Contrôler la quantité","Lubrifiant",{"$nulls":4},"A009  le lubrifiant est absent"]
["A037","Contrôler le fonctionnement","Arbre d'entraînement",{"$nulls":4},"A037  transmission tapis HS"]
["A046","Contrôler le fonctionnement","Cellule d'offset dosage"]
["A059","Contrôler le fonctionnement","Cellule d'offset dosage"]
["A072","Contrôler le fonctionnement","Cellule d'offset dosage"]
["A023","Contrôler l'étanchéité","Paliers"]
["A028","Contrôler l'étanchéité","Paliers"]
["A033","Contrôler l'étanchéité","Paliers"]
["A042","Contrôler l'intégrité","Chaîne",{"$nulls":4},"A042  Chaîne  cassée"]
["A098","Contrôler l'intégrité","Galets"]
["A121","Contrôler l'intégrité","Galets"]
["A127","Contrôler l'intégrité","Galets"]
["A136","Contrôler l'intégrité","Galets"]
["A084","Contrôler l'intégrité","Guides sous tapis",{"$nulls":4},"A084  guides de soutien du tapis d'alimentation deteriorés"]
["A041","Contrôler l'intégrité","Pignons d'entraînement",{"$nulls":4},"A041  Pignons usés"]
["A020","Contrôler l'intégrité","Rouleaux de renvoi"]
["A021","Contrôler l'intégrité","Rouleaux de renvoi"]
["A018","Contrôler l'intégrité","Tapis modulaire"]
["A022","Contrôler l'intégrité","Tapis modulaire"]
["A024","Contrôler l'intégrité","Tapis modulaire"]
["A027","Contrôler l'intégrité","Tapis modulaire"]
["A032","Contrôler l'intégrité","Tapis modulaire"]
["A035","Contrôler l'intégrité","Tapis modulaire"]
["A036","Contrôler l'intégrité","Tapis modulaire"]
["A039","Contrôler l'intégrité","Tapis modulaire"]
["A070","Contrôler l'intégrité","Tapis modulaire"]
["A074","Contrôler l'intégrité","Tapis modulaire"]
["A099","Contrôler l'intégrité","Téflon",{"$nulls":4},"A099  teflon endommagé"]
[null,"Contrôle de réglage"]
["A004","Contrôler la détection","Cellule produits couchés",{"$nulls":4},"A004  cellule produit couché pas cablé"]
["A014","Contrôler la longueur","Tapis modulaire",{"$nulls":4},"A014  tapis modulaire trop long"]
["A001","Contrôler la position","Balancelle manque produit"]
["A002","Contrôler la position","Balancelle manque produit"]
["A087","Contrôler la position","Balancelle manque produit"]
["A090","Contrôler la position","Balancelle manque produit"]
["A139","Contrôler la position","Balancelle manque produit"]
["A145","Contrôler la position","Balancelle manque produit"]
["A010","Contrôler la position","Cellule d'offset dosage"]
["A048","Contrôler la position","Cellule d'offset dosage"]
["A058","Contrôler la position","Cellule d'offset dosage"]
["A071","Contrôler la position","Cellule d'offset dosage"]
["A140","Contrôler la position","Cellule d'offset dosage"]
["A049","Contrôler la position","Guides convoyeur"]
["A052","Contrôler la position","Guides convoyeur"]
["A061","Contrôler la position","Guides convoyeur"]
["A073","Contrôler la position","Guides convoyeur"]
["A078","Contrôler la position","Guides convoyeur"]
["A125","Contrôler la position","Guides convoyeur"]
["A138","Contrôler la position","Guides convoyeur"]
["A019","Contrôler la position","Pignons d'entraînement"]
["A044","Contrôler la position","Pignons d'entraînement"]
["A017","Contrôler la position","Tapis modulaire"]
["A029","Contrôler la position","Tapis modulaire"]
["A030","Contrôler la position","Tapis modulaire"]
["A031","Contrôler la position","Tapis modulaire"]
["A081","Contrôler la position","Tapis modulaire"]
["A080","Contrôler la position","Tôles des couloirs"]
["A082","Contrôler la position","Tôles des couloirs"]
["A094","Contrôler la position","Tôles des couloirs"]
["A110","Contrôler la position","Tôles des couloirs"]
["A117","Contrôler la position","Tôles des couloirs"]
["A008","Contrôler la pression","Convoyeur d'alimentation"]
["A066","Contrôler la pression","Convoyeur d'alimentation"]
["A075","Contrôler la pression","Convoyeur d'alimentation"]
["A111","Contrôler la pression","Convoyeur d'alimentation"]
["A129","Contrôler la pression","Convoyeur d'alimentation"]
["A142","Contrôler la pression","Convoyeur d'alimentation"]
["A007","Contrôler la pression","Convoyeur de dosage"]
["A047","Contrôler la pression","Convoyeur de dosage"]
["A053","Contrôler la pression","Convoyeur de dosage"]
["A054","Contrôler la pression","Convoyeur de dosage"]
["A060","Contrôler la pression","Convoyeur de dosage"]
["A064","Contrôler la pression","Convoyeur de dosage"]
["A065","Contrôler la pression","Convoyeur de dosage"]
["A079","Contrôler la pression","Convoyeur de dosage"]
["A086","Contrôler la pression","Convoyeur de dosage"]
["A124","Contrôler la pression","Convoyeur de dosage"]
["A005","Contrôler la qualité","Lubrifiant",{"$nulls":4},"A005  lubrifiant inadaptée"]
["A015","Contrôler la quantité","Lubrifiant"]
["A097","Contrôler la quantité","Lubrifiant"]
["A120","Contrôler la quantité","Lubrifiant"]
["A135","Contrôler la quantité","Lubrifiant"]
["A045","Contrôler le coefficient de friction","Tapis modulaire",{"$nulls":4},"A045  trop de lubrification"]
["A056","Contrôler le fonctionnement","Convoyeurs en amont"]
["A057","Contrôler le fonctionnement","Convoyeurs en amont"]
["A067","Contrôler le fonctionnement","Convoyeurs en amont"]
["A069","Contrôler le fonctionnement","Convoyeurs en amont"]
["A083","Contrôler le niveau","Convoyeur d'alimentation",{"$nulls":4},"A083  mauvais montage du caisson de raccordement du tapis d'alimentation"]
["A091","Contrôler l'intégrité","Produits en amont"]
["A095","Contrôler l'intégrité","Produits en amont"]
["A096","Contrôler l'intégrité","Produits en amont"]
["A100","Contrôler l'intégrité","Produits en amont"]
["A112","Contrôler l'intégrité","Produits en amont"]
["A113","Contrôler l'intégrité","Produits en amont"]
["A119","Contrôler l'intégrité","Produits en amont"]
["A122","Contrôler l'intégrité","Produits en amont"]
["A126","Contrôler l'intégrité","Produits en amont"]
["A130","Contrôler l'intégrité","Produits en amont"]
["A131","Contrôler l'intégrité","Produits en amont"]
["A134","Contrôler l'intégrité","Produits en amont"]
["A137","Contrôler l'intégrité","Produits en amont"]
["A141","Contrôler l'intégrité","Produits en amont"]
["A144","Contrôler l'intégrité","Produits en amont"]
["A146","Contrôler l'intégrité","Produits en amont"]
["A101","Contrôler l'intégrité","Tôles des couloirs"]
["A108","Contrôler l'intégrité","Tôles des couloirs"]
["A123","Contrôler l'intégrité","Tôles des couloirs"]
["A012","Contrôler l'intensité","Vibreurs"]
["A115","Contrôler l'intensité","Vibreurs"]
["A116","Contrôler l'intensité","Vibreurs"]
["A132","Contrôler l'intensité","Vibreurs"]